bitfinex-derivatives/quotes_BTCF0:USTF0_20241227
["timestamp","ask_amount","ask_price","bid_price","bid_amount"]
[1735325244144,0.57537481,94520.0,94504.0,0.3608]
[1735325244337,0.052976,94518.0,94504.0,0.3608]
[1735325245652,0.00358823,94509.0,94505.0,0.052984]
[1735325247051,0.3608,94506.0,94488.0,1.578]
[1735325247453,0.3608,94506.0,94496.0,0.052988]
[1735325248451,0.3608,94506.0,94488.0,1.58884349]
[1735325248452,0.3608,94506.0,94488.0,1.59084349]
[1735325248653,0.3608,94506.0,94490.0,0.052992]
[1735325249846,0.413783,94506.0,94491.0,0.0755]
[1735325251041,0.414783,94506.0,94491.0,0.0755]
[1735325252250,0.052984,94505.0,94491.0,0.0755]
[1735325252545,0.052992,94490.0,94489.0,0.00056]
[1735325252751,0.3608,94490.0,94466.0,0.053005]
[1735325252951,0.3608,94478.0,94466.0,0.053005]
[1735325253153,0.3608,94478.0,94467.0,0.01092525]
[1735325253747,0.3608,94478.0,94466.0,0.053005]
[1735325254249,0.3618,94478.0,94466.0,0.053005]
[1735325254646,0.3618,94478.0,94465.0,0.3608]
[1735325254845,0.3618,94478.0,94462.0,0.0773]
[1735325255151,0.4006,94478.0,94455.0,0.37165147]
[1735325255354,0.4402,94478.0,94455.0,0.3608]
[1735325255548,0.053007,94464.0,94455.0,0.3608]
[1735325256255,0.052007,94464.0,94455.0,0.3608]
[1735325256759,0.001,94464.0,94454.0,0.413812]
[1735325257658,0.002,94464.0,94455.0,0.003]
[1735325258552,0.053007,94463.0,94454.0,0.3638]
[1735325258756,0.002,94464.0,94454.0,0.3638]
[1735325258949,0.3608,94456.0,94454.0,0.003]
[1735325260266,0.053012,94455.0,94454.0,0.003]
[1735325260565,0.127812,94455.0,94444.0,0.00158833]
[1735325260863,0.16159981,94454.0,94444.0,0.00158833]
[1735325261046,0.3608,94447.0,94444.0,0.00158833]
[1735325262365,0.3618,94447.0,94444.0,0.00158833]
[1735325264260,0.3618,94447.0,94431.0,0.092725]
[1735325264261,0.3608,94447.0,94431.0,0.092725]
[1735325264563,0.3638,94447.0,94431.0,0.0397]
[1735325264765,0.3638,94447.0,94432.0,1.5]
[1735325264954,0.3638,94447.0,94435.0,0.053023]
[1735325265152,0.3648,94447.0,94435.0,0.053023]
[1735325265764,0.3648,94447.0,94432.0,1.5006]
[1735325266061,0.3618,94447.0,94432.0,1.5]
[1735325266655,0.3628,94447.0,94432.0,1.5]
[1735325267357,0.3618,94447.0,94432.0,1.5]
[1735325267564,0.16159981,94442.0,94432.0,1.5]
[1735325267750,0.1078918,94442.0,94432.0,1.5]
[1735325268163,0.053017,94446.0,94432.0,1.5]
[1735325268961,0.001,94442.0,94432.0,1.5]
[1735325269466,0.002,94442.0,94432.0,1.5]
[1735325270155,0.002,94442.0,94436.0,0.053022]
[1735325270550,0.001,94442.0,94436.0,0.053022]
[1735325271160,0.001,94442.0,94432.0,0.00056]
[1735325271357,0.1108918,94442.0,94431.0,0.05080919]
[1735325271753,0.1108918,94442.0,94431.0,1.55080919]
[1735325271958,0.3608,94438.0,94431.0,0.05080919]
[1735325273153,0.3608,94438.0,94431.0,0.10383419]
[1735325273354,0.3608,94438.0,94431.0,0.05080919]
[1735325273764,0.3618,94438.0,94431.0,0.0397]
[1735325273966,0.053027,94428.0,94427.0,0.3608]
[1735325274161,0.3608,94429.0,94428.0,0.01093679]
[1735325274360,0.413826,94429.0,94428.0,0.01093679]
[1735325274563,0.3608,94429.0,94417.0,0.18848043]
[1735325274765,0.3608,94429.0,94415.0,1.86144]
[1735325274970,0.3608,94429.0,94418.0,0.053032]
[1735325275365,0.3608,94429.0,94415.0,1.8614]
[1735325275366,0.3608,94429.0,94415.0,0.414434]
[1735325275568,0.3608,94429.0,94415.0,0.413834]
[1735325275769,0.3608,94429.0,94416.0,1.5]
[1735325276261,0.3608,94429.0,94412.0,0.00158886]
[1735325276262,0.053035,94414.0,94412.0,0.00158886]
[1735325278465,0.3608,94419.0,94412.0,0.00158886]
[1735325278865,0.001,94414.0,94412.0,0.00158886]
[1735325280467,0.001,94414.0,94412.0,0.05462386]
[1735325281468,0.001,94414.0,94413.0,1.5]
[1735325281868,0.001,94414.0,94413.0,1.8608]
[1735325282169,0.37151606,94439.0,94421.0,0.05303]
[1735325282170,0.413821,94439.0,94421.0,0.05303]
[1735325282477,0.1078918,94430.0,94422.0,0.0809]
[1735325283171,0.3608,94423.0,94412.0,0.25230825]
[1735325283383,0.053031,94421.0,94412.0,0.25230825]
[1735325283763,0.053031,94421.0,94418.0,0.18942083]
[1735325283964,0.3608,94423.0,94418.0,0.18942083]
[1735325284776,0.3608,94423.0,94422.0,0.05303]
[1735325285271,0.001,94430.0,94429.0,0.053026]
[1735325285470,0.45610303,94436.0,94429.0,1.553026]
[1735325285664,0.45538303,94436.0,94429.0,1.553026]
[1735325285870,0.45538303,94436.0,94430.0,0.0782]
[1735325286676,0.45538303,94436.0,94431.0,0.053025]
[1735325286876,0.3618,94436.0,94431.0,0.053025]
[1735325288280,0.3618,94436.0,94432.0,0.053024]
[1735325288469,0.3628,94436.0,94432.0,0.053024]
[1735325288977,0.3638,94436.0,94432.0,0.053024]
[1735325289480,0.3628,94436.0,94432.0,0.054024]
[1735325289983,0.002,94436.0,94435.0,0.053023]
[1735325290172,0.09458303,94447.0,94445.0,0.053017]
[1735325290475,0.09458303,94447.0,94446.0,0.0406]
[1735325290681,0.09458303,94447.0,94446.0,0.1202]
[1735325291472,0.053007,94463.0,94446.0,0.1202]
[1735325291780,0.001,94447.0,94446.0,0.1202]
[1735325292172,0.001,94447.0,94446.0,0.173216]
[1735325292873,0.00258918,94448.0,94446.0,0.175216]
[1735325293075,0.003,94447.0,94446.0,0.175216]
[1735325293882,0.001,94447.0,94446.0,0.175216]
[1735325294384,0.001,94447.0,94446.0,0.173216]
[1735325294582,0.002,94447.0,94446.0,0.18596043]
[1735325295477,0.12602955,94460.0,94446.0,0.18596043]
[1735325295478,0.03607221,94459.0,94447.0,0.053016]
[1735325295780,0.12602955,94464.0,94463.0,0.053007]
[1735325297180,0.12602955,94476.0,94466.0,0.053005]
[1735325297379,0.12602955,94476.0,94467.0,0.0379]
[1735325297688,0.12602955,94476.0,94467.0,0.076]
[1735325298586,0.12702955,94476.0,94467.0,0.076]
[1735325298785,0.001,94476.0,94467.0,0.08]
[1735325300083,0.001,94476.0,94469.0,0.053003]
[1735325300289,0.001,94476.0,94467.0,0.08]
[1735325300478,0.12602955,94485.0,94467.0,0.08]
[1735325300479,0.12602955,94485.0,94473.0,0.3608]
[1735325300675,0.12602955,94485.0,94484.0,0.052995]
[1735325301686,0.052986,94501.0,94484.0,0.052995]
[1735325302077,0.004,94485.0,94484.0,0.052995]
[1735325303086,0.12602955,94506.0,94484.0,0.052995]
[1735325303289,0.12602955,94506.0,94470.0,0.2157836]
[1735325303290,0.48762955,94517.0,94501.0,0.052986]
[1735325303587,0.53980655,94517.0,94501.0,1.552986]
[1735325304084,0.53980655,94517.0,94501.0,1.5]
[1735325304292,0.53980655,94517.0,94502.0,0.052985]
[1735325304485,0.415777,94517.0,94502.0,0.052985]
[1735325304880,0.002,94517.0,94510.0,0.05298]
[1735325305283,0.002,94517.0,94506.0,0.3608]
[1735325305592,0.002,94517.0,94513.0,0.052978]
[1735325307884,0.002,94517.0,94514.0,0.052978]
[1735325308079,0.002,94517.0,94515.0,0.052978]
[1735325308799,0.002,94517.0,94497.0,0.0756]
[1735325308986,0.002,94517.0,94510.0,0.052981]
[1735325309388,0.002,94517.0,94515.0,0.002]
[1735325309795,0.001,94517.0,94512.0,0.052979]
[1735325309995,0.002,94517.0,94512.0,0.052979]
[1735325310300,0.002,94517.0,94515.0,0.052978]
[1735325310489,0.001,94517.0,94515.0,0.052978]
[1735325310685,0.003,94517.0,94515.0,0.052978]
[1735325311385,0.002,94517.0,94515.0,0.052978]
[1735325311594,0.002,94517.0,94515.0,0.0129393]
[1735325311896,0.002,94517.0,94515.0,0.002]
[1735325312594,0.002,94517.0,94500.0,0.052986]
[1735325312898,0.3608,94501.0,94497.0,0.01065437]
[1735325313196,0.052989,94495.0,94485.0,0.3608]
[1735325313406,0.052991,94492.0,94477.0,0.052999]
[1735325313588,0.052991,94492.0,94484.0,0.01086879]
[1735325313589,0.3608,94490.0,94484.0,0.01086879]
[1735325313787,0.3608,94490.0,94473.0,0.0406]
[1735325314094,0.3608,94490.0,94486.0,0.052994]
[1735325314393,0.3598,94490.0,94488.0,0.052993]
[1735325315292,0.3608,94498.0,94497.0,0.052988]
[1735325316092,0.3608,94510.0,94501.0,0.052986]
[1735325317100,0.413781,94510.0,94497.0,0.3658]
[1735325317405,0.414781,94510.0,94498.0,0.052987]
[1735325318201,0.413781,94510.0,94501.0,0.004]
[1735325319193,0.12602955,94509.0,94498.0,0.057987]
[1735325319795,0.12602955,94509.0,94501.0,0.004]
[1735325320096,0.12602955,94509.0,94501.0,0.056986]
[1735325320498,0.12602955,94505.0,94501.0,0.056986]
[1735325321402,0.12602955,94505.0,94501.0,0.052986]
[1735325321807,0.12602955,94505.0,94504.0,0.052984]
[1735325322304,0.001,94509.0,94501.0,0.004]
[1735325322305,0.12602955,94507.0,94501.0,0.004]
[1735325322902,0.052986,94501.0,94490.0,0.052992]
[1735325323112,0.0368,94500.0,94490.0,0.052992]
[1735325323307,0.052988,94498.0,94490.0,0.052992]
[1735325323507,0.0407,94499.0,94492.0,0.052991]
[1735325323702,0.0407,94499.0,94493.0,0.05299]
[1735325323902,0.3608,94502.0,94488.0,0.3608]
[1735325324208,0.3608,94502.0,94499.0,0.052987]
[1735325324410,0.3608,94502.0,94500.0,0.052986]
[1735325324603,0.3608,94502.0,94501.0,0.003]
[1735325325109,0.3618,94502.0,94500.0,0.052986]
[1735325325808,0.3608,94502.0,94501.0,0.003]
[1735325326803,0.3618,94502.0,94501.0,0.003]
[1735325327397,0.3618,94502.0,94500.0,0.055986]
[1735325328611,0.3618,94502.0,94501.0,0.003]
[1735325328810,0.3618,94502.0,94501.0,1.503]
[1735325329009,0.3618,94502.0,94501.0,1.5]
[1735325329914,0.3608,94502.0,94501.0,1.5]
[1735325330110,0.3618,94502.0,94501.0,1.5]
[1735325330707,0.3618,94502.0,94501.0,1.503]
[1735325331508,0.41334111,94502.0,94501.0,1.503]
[1735325331909,0.05254111,94502.0,94501.0,1.503]
[1735325332407,0.1570729,94506.0,94505.0,0.052984]
[1735325332614,0.1570729,94506.0,94505.0,0.413784]
[1735325332913,0.15859286,94506.0,94505.0,0.413784]
[1735325333210,0.15859286,94506.0,94505.0,1.913784]
[1735325333602,0.16059286,94506.0,94505.0,1.913784]
[1735325333810,0.16059286,94506.0,94505.0,1.914784]
[1735325335007,0.12684293,94511.0,94510.0,0.052981]
[1735325335602,0.12684293,94511.0,94510.0,0.091581]
[1735325336719,0.12684293,94523.0,94510.0,0.0386]
[1735325336914,0.12684293,94523.0,94522.0,0.052974]
[1735325337412,0.12684293,94523.0,94522.0,0.135074]
[1735325338014,0.003,94523.0,94522.0,0.135074]
[1735325338321,0.005,94523.0,94522.0,0.135074]
[1735325339321,0.005,94523.0,94522.0,0.14553806]
[1735325339820,0.00158719,94530.0,94529.0,0.05297]
[1735325340022,0.00158719,94530.0,94529.0,0.41377]
[1735325340426,0.12684293,94543.0,94542.0,0.052963]
[1735325340718,0.12684293,94544.0,94542.0,0.052963]
[1735325341814,0.007,94543.0,94542.0,0.053963]
[1735325342222,0.007,94543.0,94542.0,0.054963]
[1735325343621,0.016,94543.0,94542.0,0.054963]
[1735325343814,0.009,94543.0,94542.0,0.054963]
[1735325344126,0.009,94543.0,94542.0,0.06560793]
[1735325344623,0.015,94543.0,94542.0,0.06560793]
[1735325348722,0.015,94543.0,94542.0,0.01264493]
[1735325348919,0.015,94543.0,94542.0,0.002]
[1735325349118,0.015,94543.0,94529.0,0.3608]
[1735325349323,0.052964,94540.0,94529.0,0.3608]
[1735325349517,0.0817,94539.0,94529.0,0.3608]
[1735325350626,0.12641718,94531.0,94529.0,0.47916604]
[1735325350817,0.12641718,94531.0,94529.0,0.37151451]
[1735325352021,0.15859286,94535.0,94530.0,0.05297]
[1735325352328,0.005,94531.0,94530.0,0.05297]
[1735325353812,0.16359286,94535.0,94534.0,0.052967]
[1735325354625,0.005,94531.0,94530.0,0.09267]
[1735325355021,0.005,94535.0,94530.0,0.0387]
[1735325355223,0.012,94535.0,94534.0,0.053967]
[1735325356528,0.007,94535.0,94534.0,0.053967]
[1735325356729,0.1264886,94550.0,94536.0,0.052966]
[1735325357429,0.1264886,94547.0,94536.0,0.052966]
[1735325357726,0.1264886,94547.0,94534.0,0.001]
[1735325357927,0.1264886,94547.0,94538.0,0.052965]
[1735325359029,0.36352,94548.0,94538.0,0.052965]
[1735325359030,0.1264886,94544.0,94538.0,0.052965]
[1735325360133,0.1264886,94542.0,94538.0,0.052965]
[1735325361432,0.002,94542.0,94538.0,0.052965]
[1735325361635,0.003,94542.0,94537.0,0.3608]
[1735325361930,0.003,94542.0,94540.0,0.052964]
[1735325362535,0.1294886,94542.0,94540.0,0.052964]
[1735325363033,0.1284886,94542.0,94540.0,0.052964]
[1735325363534,0.1264886,94542.0,94540.0,0.052964]
[1735325363836,0.1314886,94542.0,94540.0,0.052964]
[1735325364132,0.005,94542.0,94540.0,0.052964]
[1735325365731,0.0394,94541.0,94540.0,0.052964]
[1735325367031,0.052965,94538.0,94534.0,0.18926557]
[1735325367228,0.3608,94537.0,94534.0,0.18926557]
[1735325367728,0.039,94536.0,94534.0,0.18926557]
[1735325367926,0.039,94536.0,94534.0,0.20011805]
[1735325368740,0.05152455,94535.0,94534.0,0.01085248]
[1735325368924,0.05152455,94535.0,94530.0,0.052969]
[1735325369736,0.05152455,94535.0,94534.0,0.001]
[1735325370234,0.05152455,94535.0,94530.0,0.06664179]
[1735325370535,0.05252455,94535.0,94530.0,0.06664179]
[1735325371334,0.05252455,94535.0,94534.0,0.001]
[1735325372837,0.05252455,94535.0,94530.0,0.003]
[1735325373228,0.052969,94532.0,94521.0,1.5]
[1735325373540,0.052971,94529.0,94521.0,1.51094018]
[1735325374040,0.049971,94529.0,94521.0,1.51094018]
[1735325374538,0.001,94532.0,94522.0,0.052974]
[1735325374837,0.19050588,94523.0,94522.0,0.052974]
[1735325375937,0.12698855,94526.0,94522.0,0.053974]
[1735325376839,0.001,94523.0,94522.0,0.059974]
[1735325377234,0.001,94526.0,94522.0,0.059974]
[1735325377436,0.001,94526.0,94525.0,0.052972]
[1735325379241,0.12698855,94533.0,94527.0,0.052971]
[1735325379442,0.12698855,94533.0,94528.0,0.05297]
[1735325379844,0.12698855,94535.0,94528.0,0.05297]
[1735325380644,0.12698855,94535.0,94529.0,0.038]
[1735325380844,0.12698855,94535.0,94529.0,0.09097]
[1735325381044,0.12698855,94535.0,94530.0,0.0408]
[1735325381345,0.12698855,94534.0,94530.0,0.0408]
[1735325382038,0.12698855,94534.0,94531.0,0.052969]
[1735325382241,0.12698855,94534.0,94532.0,0.052968]
[1735325382436,0.12798855,94535.0,94532.0,0.052968]
[1735325382842,0.12698855,94535.0,94533.0,0.052968]
[1735325383034,0.001,94534.0,94533.0,0.052968]
[1735325383949,0.001,94534.0,94533.0,1.552968]
[1735325384337,0.001,94534.0,94533.0,0.052968]
[1735325385343,0.001,94534.0,94533.0,0.053968]
[1735325385741,0.15869806,94536.0,94535.0,0.052967]
[1735325386139,0.19050588,94540.0,94535.0,1.5]
[1735325386442,0.19050588,94540.0,94539.0,0.052964]
[1735325387543,0.19050588,94542.0,94539.0,0.052964]
[1735325388954,0.002,94540.0,94539.0,0.052964]
[1735325389449,0.05351821,94540.0,94539.0,0.052964]
[1735325389656,0.05151821,94540.0,94539.0,0.052964]
[1735325389855,0.05151821,94540.0,94535.0,1.50056]
[1735325390154,0.05151821,94540.0,94532.0,0.06344476]
[1735325390355,0.05151821,94540.0,94532.0,0.052968]
[1735325390551,0.19450588,94542.0,94532.0,0.052968]
[1735325390552,0.004,94542.0,94536.0,0.19019241]
[1735325390756,0.12895339,94540.0,94536.0,0.19019241]
[1735325391947,0.13095339,94540.0,94536.0,0.19019241]
[1735325392250,0.12695339,94537.0,94533.0,0.24315941]
[1735325392451,0.12695339,94537.0,94535.0,0.052967]
[1735325393454,0.12695339,94539.0,94536.0,0.19019241]
[1735325393650,0.002,94537.0,94536.0,0.19019241]
[1735325394651,0.002,94537.0,94535.0,0.24315941]
[1735325395249,0.12695339,94538.0,94535.0,0.24315941]
[1735325395557,0.001,94537.0,94535.0,0.24315941]
[1735325395857,0.001,94537.0,94535.0,0.052967]
[1735325396050,0.003,94537.0,94535.0,0.052967]
[1735325396254,0.002,94537.0,94535.0,0.052967]
[1735325397458,0.12895339,94537.0,94535.0,0.052967]
[1735325398160,0.12695339,94536.0,94535.0,0.052967]
[1735325399361,0.002,94536.0,94535.0,0.052967]
[1735325401258,0.002,94536.0,94535.0,1.552967]
[1735325402160,0.002,94536.0,94535.0,1.74315941]
[1735325403366,0.002,94536.0,94535.0,1.552967]
[1735325403367,0.12898397,94536.0,94535.0,1.552967]
[1735325405270,0.002,94536.0,94535.0,1.552967]
[1735325406565,0.05351842,94536.0,94535.0,1.552967]
[1735325408771,0.22155542,94548.0,94535.0,1.8]
[1735325408965,0.20793503,94548.0,94547.0,0.41376]
[1735325409270,0.19993503,94548.0,94547.0,0.41376]
[1735325409464,0.19993503,94548.0,94547.0,1.91376]
[1735325409864,0.20193503,94548.0,94547.0,1.91376]
[1735325410362,0.20193503,94548.0,94547.0,1.91476]
[1735325410560,0.008,94548.0,94547.0,1.91476]
[1735325411160,0.008,94548.0,94547.0,0.41476]
[1735325411769,0.006,94548.0,94547.0,0.06465277]
[1735325411973,0.16675481,94548.0,94547.0,0.06465277]
[1735325413170,0.008,94548.0,94547.0,0.06465277]
[1735325414772,0.008,94548.0,94547.0,0.42545277]
[1735325415465,0.008,94548.0,94547.0,0.46255277]
[1735325421172,0.008,94548.0,94547.0,0.42545277]
[1735325423379,0.008,94548.0,94547.0,0.06465277]
[1735325425876,0.15864492,94550.0,94547.0,0.37249277]
[1735325426075,0.0767,94580.0,94566.0,0.052949]
[1735325426275,0.0385,94580.0,94566.0,0.413749]
[1735325426479,0.0385,94580.0,94566.0,1.913749]
[1735325426877,0.13436562,94575.0,94574.0,0.052945]
[1735325427986,0.13436562,94575.0,94574.0,0.413745]
[1735325428188,0.12670853,94577.0,94576.0,0.052944]
[1735325428877,0.12670853,94577.0,94576.0,1.552944]
[1735325429572,0.00613712,94598.0,94576.0,1.552944]
[1735325429778,0.00613712,94598.0,94595.0,0.052933]
[1735325429980,0.1,94600.0,94596.0,0.052932]
[1735325430292,0.1,94600.0,94597.0,0.052932]
[1735325431886,0.107,94600.0,94597.0,0.053932]
[1735325432187,0.009,94598.0,94597.0,0.053932]
[1735325432784,0.107,94600.0,94597.0,0.054932]
[1735325432785,0.116,94600.0,94597.0,0.054932]
[1735325433477,0.107,94600.0,94597.0,0.053932]
[1735325433681,0.009,94598.0,94597.0,0.054932]
[1735325433888,0.009,94598.0,94597.0,0.415732]
[1735325434088,0.009,94598.0,94597.0,0.42562477]
[1735325434291,0.016,94598.0,94597.0,0.42662477]
[1735325434582,0.016,94598.0,94597.0,1.92662477]
[1735325435288,0.007,94598.0,94597.0,1.92662477]
[1735325435672,0.109,94600.0,94599.0,0.052931]
[1735325435877,0.09495276,94620.0,94599.0,0.052931]
[1735325436084,0.09495276,94620.0,94618.0,0.05292]
[1735325436293,0.09495276,94620.0,94619.0,0.3964]
[1735325436689,0.00158553,94630.0,94619.0,0.3964]
[1735325436690,0.18990553,94626.0,94619.0,0.3964]
[1735325436883,0.18990553,94626.0,94625.0,0.052916]
[1735325437084,0.00158553,94630.0,94625.0,0.052916]
[1735325438280,0.09461138,94629.0,94625.0,0.052916]
[1735325439283,0.009,94626.0,94625.0,0.053916]
[1735325439687,0.009,94626.0,94625.0,0.052916]
[1735325439896,0.10361138,94629.0,94625.0,0.053916]
[1735325440383,0.009,94626.0,94625.0,0.053916]
[1735325440885,0.009,94626.0,94625.0,0.06446542]
[1735325441992,0.009,94629.0,94625.0,0.06446542]
[1735325442583,0.009,94626.0,94625.0,0.06446542]
[1735325443192,0.009,94629.0,94625.0,0.06446542]
[1735325444191,0.009,94626.0,94625.0,0.06446542]
[1735325445290,0.015,94626.0,94625.0,0.06446542]
[1735325445686,0.006,94626.0,94625.0,0.06446542]
[1735325446290,0.015,94626.0,94625.0,0.06446542]
[1735325447395,0.015,94626.0,94625.0,0.01154942]
[1735325451799,0.09461138,94654.0,94648.0,0.052903]
[1735325452092,0.09461138,94654.0,94648.0,0.3608]
[1735325452288,0.09461138,94654.0,94652.0,0.052901]
[1735325452996,0.10361138,94654.0,94652.0,0.052901]
[1735325453504,0.009,94654.0,94652.0,0.053901]
[1735325454798,0.009,94654.0,94648.0,1.86136]
[1735325454799,0.3608,94653.0,94648.0,0.00056]
[1735325455003,0.052904,94648.0,94639.0,0.01068945]
[1735325455302,0.3608,94642.0,94631.0,0.413713]
[1735325455597,0.052913,94631.0,94630.0,0.18856414]
[1735325455802,0.3608,94632.0,94624.0,0.01050108]
[1735325456102,0.0358,94630.0,94616.0,0.12966414]
[1735325456298,0.0358,94630.0,94619.0,0.052919]
[1735325456689,0.0358,94630.0,94620.0,0.10765153]
[1735325456993,0.3608,94642.0,94634.0,0.052911]
[1735325457297,0.0358,94641.0,94623.0,0.3608]
[1735325457495,0.09461138,94636.0,94623.0,0.3608]
[1735325457695,0.09461138,94636.0,94626.0,0.10765153]
[1735325457890,0.09461138,94636.0,94623.0,0.3608]
[1735325458592,0.09461138,94636.0,94623.0,0.3618]
[1735325458789,0.09761138,94636.0,94626.0,0.10765153]
[1735325458986,0.003,94636.0,94635.0,0.052911]
[1735325459389,0.001,94636.0,94635.0,0.052911]
[1735325460498,0.003,94636.0,94635.0,0.052911]
[1735325461396,0.004,94636.0,94635.0,0.052911]
[1735325461991,0.001,94636.0,94635.0,1.552911]
[1735325462191,0.13250616,94636.0,94635.0,1.56474851]
[1735325463598,0.006,94636.0,94635.0,1.56474851]
[1735325464501,0.006,94636.0,94635.0,1.51183751]
[1735325464697,0.006,94636.0,94635.0,0.01183751]
[1735325465109,0.006,94636.0,94635.0,1.51183751]
[1735325465299,0.006,94636.0,94635.0,0.01183751]
[1735325467606,0.006,94636.0,94635.0,0.001]
[1735325467906,0.0823,94636.0,94635.0,0.001]
[1735325470699,0.20880616,94636.0,94635.0,0.001]
[1735325471812,0.0823,94636.0,94635.0,0.001]
[1735325474505,0.006,94636.0,94635.0,0.001]
[1735325474709,0.006,94636.0,94635.0,0.3618]
[1735325475114,0.006,94636.0,94635.0,1.90903513]
[1735325475415,0.03600835,94637.0,94636.0,0.05291]
[1735325475807,0.413694,94666.0,94636.0,0.05291]
[1735325475808,0.12650616,94653.0,94636.0,0.05291]
[1735325476008,0.12650616,94653.0,94648.0,0.413703]
[1735325477518,0.001,94653.0,94648.0,0.413703]
[1735325478105,0.053901,94653.0,94648.0,0.3618]
[1735325478311,0.052903,94650.0,94648.0,0.001]
[1735325478618,0.3608,94651.0,94643.0,0.25141885]
[1735325478811,0.3608,94651.0,94637.0,0.31427357]
[1735325478812,0.052906,94644.0,94642.0,0.25141885]
[1735325479006,0.4316,94643.0,94636.0,0.31427357]
[1735325479208,0.05291,94637.0,94636.0,0.31427357]
[1735325480416,0.052911,94636.0,94629.0,0.3608]
[1735325480617,0.052911,94635.0,94629.0,0.3608]
[1735325480806,0.3608,94633.0,94625.0,0.052916]
[1735325481007,0.413712,94633.0,94625.0,0.052916]
[1735325481215,0.413712,94633.0,94609.0,0.31427357]
[1735325481216,0.052924,94611.0,94609.0,0.31427357]
[1735325481810,0.052924,94611.0,94601.0,0.05293]
[1735325481811,0.089024,94611.0,94601.0,0.05293]
[1735325482012,0.0361,94611.0,94603.0,0.052928]
[1735325482718,0.0361,94611.0,94598.0,0.3608]
[1735325482904,0.05147234,94610.0,94598.0,0.3608]
[1735325483109,0.05147234,94610.0,94606.0,0.00558554]
[1735325483316,0.046926,94608.0,94606.0,0.00558554]
[1735325484008,0.18990632,94607.0,94606.0,0.01058554]
[1735325484607,0.18990632,94607.0,94606.0,0.42131254]
[1735325484821,0.08010632,94607.0,94606.0,0.42131254]
[1735325485220,0.05147234,94607.0,94606.0,1.92231254]
[1735325485413,0.05147234,94607.0,94606.0,1.91831254]
[1735325485718,0.05147234,94607.0,94606.0,1.92131254]
[1735325485924,0.2207599,94625.0,94618.0,0.05292]
[1735325486121,0.2207599,94625.0,94614.0,0.3608]
[1735325486317,0.2207599,94629.0,94624.0,0.052917]
[1735325487217,0.00158581,94630.0,94624.0,0.052917]
[1735325487419,0.002,94625.0,94624.0,0.052917]
[1735325487824,0.00158581,94630.0,94624.0,0.052917]
[1735325488020,0.006,94629.0,94624.0,0.053917]
[1735325488922,0.007,94629.0,94624.0,0.053917]
[1735325489714,0.006,94629.0,94624.0,0.054917]
[1735325490026,0.052916,94626.0,94624.0,0.001]
[1735325490214,0.006,94625.0,94624.0,0.002]
[1735325490617,0.414436,94626.0,94624.0,0.001]
[1735325490923,0.413716,94626.0,94624.0,0.001]
[1735325491318,0.006,94625.0,94624.0,0.002]
[1735325493020,0.420436,94626.0,94624.0,0.002]
[1735325493325,0.419716,94626.0,94624.0,0.001]
[1735325493724,0.3668,94626.0,94624.0,0.001]
[1735325494625,0.004,94625.0,94623.0,0.052917]
[1735325495221,0.004,94625.0,94624.0,0.001]
[1735325496122,0.004,94625.0,94623.0,0.053917]
[1735325496527,0.3638,94626.0,94623.0,0.053917]
[1735325496823,0.3638,94626.0,94624.0,0.001]
[1735325497218,0.3608,94626.0,94624.0,0.001]
[1735325497418,0.003,94625.0,94624.0,0.001]
[1735325497922,0.3608,94626.0,94624.0,0.001]
[1735325497923,0.3618,94626.0,94624.0,0.001]
[1735325498421,0.3618,94626.0,94623.0,0.053917]
[1735325498626,0.3618,94626.0,94624.0,0.052917]
[1735325499527,0.003,94625.0,94624.0,0.052917]
[1735325500029,0.3608,94626.0,94624.0,0.053917]
[1735325500322,0.3638,94626.0,94624.0,0.053917]
[1735325500715,0.002,94625.0,94624.0,0.053917]
[1735325501920,0.002,94625.0,94624.0,0.052917]
[1735325502120,0.002,94625.0,94624.0,0.053917]
[1735325502327,0.3608,94626.0,94624.0,0.053917]
[1735325502528,0.3638,94626.0,94624.0,0.053917]
[1735325502930,0.3608,94626.0,94624.0,0.053917]
[1735325503231,0.003,94625.0,94624.0,0.053917]
[1735325503618,0.3608,94626.0,94624.0,0.053917]
[1735325503619,0.3618,94626.0,94624.0,0.053917]
[1735325504030,0.414716,94626.0,94624.0,0.001]
[1735325504232,0.414716,94626.0,94618.0,0.3608]
[1735325504233,0.05292,94619.0,94618.0,0.3608]
[1735325505730,0.05292,94619.0,94618.0,0.3618]
[1735325506119,0.05292,94619.0,94618.0,0.3638]
[1735325506717,0.05292,94619.0,94618.0,0.3628]
[1735325506931,0.05292,94619.0,94618.0,0.3638]
[1735325508536,0.05292,94619.0,94618.0,0.3628]
[1735325509034,0.17949007,94619.0,94618.0,0.3628]
[1735325509227,0.17949007,94619.0,94618.0,0.3618]
[1735325509426,0.17949007,94619.0,94618.0,0.001]
[1735325509624,0.12657007,94619.0,94608.0,0.052925]
[1735325509832,0.052926,94608.0,94601.0,0.052929]
[1735325511833,0.05148151,94607.0,94601.0,0.052929]
[1735325512131,0.18993946,94602.0,94601.0,0.052929]
[1735325512532,0.18993946,94602.0,94601.0,0.064929]
[1735325513032,0.05248151,94607.0,94601.0,1.564929]
[1735325513237,0.13177515,94623.0,94622.0,0.052918]
[1735325513831,0.13177515,94623.0,94622.0,1.552918]
[1735325514428,0.00158581,94630.0,94629.0,0.052914]
[1735325515128,0.00158581,94630.0,94622.0,1.50056]
[1735325515333,0.00158581,94630.0,94622.0,0.052918]
[1735325515937,0.15850598,94625.0,94622.0,0.052918]